{"text_format":"1","workbook":"xlsx","n_sheets":1,"sheets":["Form_44"],"not_rendered":{"charts":0,"images":2,"macros":1,"external_links":2,"defined_names":13,"comments":1,"pivot_tables":0},"unopened":[],"bounds":{"document_bytes":16777216,"sheet_cells":100000,"rows_first":2000,"rows_last":500,"rows_between":2000,"halvings":0,"cell_chars":16384,"cell_head_chars":4096},"cells_cut":0,"cells_raw":0,"read":"whole","date_system":"1900"}

{"sheet":"Form_44","index":0,"n_rows":50,"n_cols":30,"rows_kept":50,"cut":false,"hidden":false,"merged":[[42,0,42,16],[43,1,43,10],[49,13,49,18],[44,11,48,18],[43,11,43,18],[46,1,47,10],[48,5,49,10],[48,1,49,4],[1,17,1,18],[2,0,2,18],[3,0,3,18],[1,0,1,15],[8,18,10,18],[7,3,7,18],[4,0,4,18],[8,16,10,16],[8,13,10,13],[5,0,5,18],[8,0,10,0],[8,15,10,15],[8,1,9,1],[8,17,10,17],[6,0,6,18],[8,14,10,14]]}
[]
["jktLFkku ljdkj\nçkfof/kd f'k{kk e.My] jktLFkku] tks/kiqj \nijh{kk l= 2019&20 ¼bath] Lis'ky½",null,null,null,null,null,null,null,null,null,null,null,null,null,null,null,null,"ikfjJfed foi=&44",null,null,null,null,null,null,0,null,null,null,0,11]
["ijh{kk dsUnz @laLFkku dk uke ,oa iwjk irk--------------------------------------------------------------------------------------------------------------------------------------------------- ijh{kk dsUnz dksM----------------------------------------------------------------------------------------------",null,null,null,null,null,null,null,null,null,null,null,null,null,null,null,null,null,null,null,null,null,null,null,1,null,null,null,1,12]
["ijh{kk dsUnz@laLFkku ds cSad dk uke ------------------------------------------------------------------------  [kkrk la[;k ----------------------------- laLFkku dk isu uEcj---------------------------------- vkbZ,Q,llh dksM----------------------------------------",null,null,null,null,null,null,null,null,null,null,null,null,null,null,null,null,null,null,null,null,null,null,null,2,null,null,null,2,13]
[null,null,null,null,null,null,null,null,null,null,null,null,null,null,null,null,null,null,null,null,null,null,null,null,null,null,null,null,null,14]
["¼1½ dkWye dksM es ijh{kk dsUnz v/kh{kd gsrq 11] vfrfjDr ijh{kk dsUnzz  v/kh{kd gsrq 12] ijh{kk oh{kd gsrq 13] Eak=kyf;d gsrq 14 ,oa prqFkZ Js.kh deZpkjh gsrq 15 vafdr djsaA",null,null,null,null,null,null,null,null,null,null,null,null,null,null,null,null,null,null,null,null,null,null,null,null,null,null,null,null,15]
["¼2½ fnukad @ikjh okys dkWye esa mifLFkfr fnol @ ikjh ds fnu 1 vafdr djsa vuqifLFfr ij 0 vafdr djsaA dqy jkf'k okys dkWye  esa x.kuk Lor% gh gksxhA vr% bl dkWye esa dqN vafdr ugha djsA"]
[null,null,null,"Exam Date"]
["SN.","\n","EXAM DATE","2021-01-13","2021-01-14","2021-01-15","2021-01-16","2021-01-18","2021-01-19","2021-01-21","2021-01-22","2021-01-23","2021-01-25","EXTRA-BEFORE","EXTRA-AFTER","TOTAL SESSIONS","RATE","TOTAL AMOUNT","SIGNATURE"]
[null,null,"SHIFT","I","I","I","I","I","I","I","I","I","I"]
[null,null,"STUDENT STRENGTH"]
[null,"Officer/Employee name in capital letters with designation","CODE"]
[1,null,null,null,null,null,null,null,null,null,null,null,null,null,null,{"$f":"SUM(D13:O13)","v":0},null,{"$f":"IF(C13=\"\",0,IF(B13=\"\",0,IF(C13=11,P13*100,IF(C13=12,P13*75,IF(C13=13,ROUND(P13*70,0),IF(C13=14,P13*40,IF(C13=15,P13*30)))))))","v":0}]
[null,null,null,null,null,null,null,null,null,null,null,null,null,null,null,{"$f":"SUM(D14:O14)","v":0},null,0]
[null,null,null,null,null,null,null,null,null,null,null,null,null,null,null,{"$f":"SUM(D15:O15)","v":0},null,0]
[null,null,null,null,null,null,null,null,null,null,null,null,null,null,null,0,null,0]
[null,null,null,null,null,null,null,null,null,null,null,null,null,null,null,{"$f":"SUM(D17:O17)","v":0},null,0]
[null,null,null,null,null,null,null,null,null,null,null,null,null,null,null,0,null,0]
[null,null,null,null,null,null,null,null,null,null,null,null,null,null,null,0,null,0]
[null,null,null,null,null,null,null,null,null,null,null,null,null,null,null,0,null,0]
[null,null,null,null,null,null,null,null,null,null,null,null,null,null,null,0,null,0]
[null,null,null,null,null,null,null,null,null,null,null,null,null,null,null,0,null,0]
[null,null,null,null,null,null,null,null,null,null,null,null,null,null,null,0,null,0]
[null,null,null,null,null,null,null,null,null,null,null,null,null,null,null,0,null,0]
[null,null,null,null,null,null,null,null,null,null,null,null,null,null,null,0,null,0]
[null,null,null,null,null,null,null,null,null,null,null,null,null,null,null,0,null,0]
[null,null,null,null,null,null,null,null,null,null,null,null,null,null,null,0,null,0]
[null,null,null,null,null,null,null,null,null,null,null,null,null,null,null,0,null,0]
[null,null,null,null,null,null,null,null,null,null,null,null,null,null,null,0,null,0]
[null,null,null,null,null,null,null,null,null,null,null,null,null,null,null,0,null,0]
[null,null,null,null,null,null,null,null,null,null,null,null,null,null,null,0,null,0]
[null,null,null,null,null,null,null,null,null,null,null,null,null,null,null,0,null,0]
[null,null,null,null,null,null,null,null,null,null,null,null,null,null,null,0,null,0]
[null,null,null,null,null,null,null,null,null,null,null,null,null,null,null,0,null,0]
[null,null,null,null,null,null,null,null,null,null,null,null,null,null,null,0,null,0]
[null,null,null,null,null,null,null,null,null,null,null,null,null,null,null,{"$f":"SUM(D36:O36)","v":0},null,0]
[null,null,null,null,null,null,null,null,null,null,null,null,null,null,null,0,null,0]
[null,null,null,null,null,null,null,null,null,null,null,null,null,null,null,0,null,0]
[null,null,null,null,null,null,null,null,null,null,null,null,null,null,null,0,null,0]
[null,null,null,null,null,null,null,null,null,null,null,null,null,null,null,0,null,0]
[null,null,null,null,null,null,null,null,null,null,null,null,null,null,null,{"$f":"SUM(D41:O41)","v":0},null,0]
[null,null,null,null,null,null,null,null,null,null,null,null,null,null,null,0,null,0]
["Grand Total",null,null,null,null,null,null,null,null,null,null,null,null,null,null,null,null,{"$f":"SUM(R13:R42)","v":0}]
[null,"No.                     e.My dk;kZy; ç;ksxkFkZ\nfnukad                     çekf.kr ,oa ikfjr \n\n",null,null,null,null,null,null,null,null,null,"        iz/kkukpk;Z ds gLrk{kj e; eksgj "]
[null,"dqy :Ik;s vadks esa",{"$f":"+R43","v":0},null,null,null,null,null,null,null,null,"çek.k i= %& \n1- izekf.kr fd;k tkrk gS fd izkfof/kd f'k{kk e.My] tks/kiqj dh ijh{kk ckcr le; le; ij izlkfjr funsZ'kksa rFkk ijh{kk v/kh{kd funsZ'k iqfLrdk dh ikyuk djrs gq, \n   fu/kkZfjr  ekin.M vuqlkj dkfeZdksa dh lsok,a izkIr djrs gq, ikfjJfed nkok funsZ'kkuqlkj vko';d foi=ksa dks layXu djrs gq, izLrqr fd;k x;k gSA\n2- Hkqxrku gsrq ;g fcy izFke ckj izLrqr fd;k x;k gSA\n3] Hkqxrku forj.k i'pkr izkfIr jlhn eaMy dks fHktok nh tk;sxhA"]
[null,"dqy :Ik;s 'kCnksa esa ",{"$f":"IF(R43>0, SUBSTITUTE(spellnumber(R43),\"Dollars and No Cents\",\"only\"),\"Rupees ….Nil ….\")","v":"Rupees ….Nil …."}]
[null,"izekf.kr fd;k tkrk gS fd  Hkqxrku gsrq ;g fcy izFke ckj izLrqr fd;k x;k gSA\n\n\n\nizHkkjh vf/kdkjh                    izHkkjh                             fyfid "]
[]
[null,"la;qDr funs'kd ¼jftLVªkj½]",null,null,null,"dk;kZy;k/;{k"]
[null,null,null,null,null,null,null,null,null,null,null,"fnukad"]